fUSD/lending_fUSD_20250426
["ID","MTS","AMOUNT","RATE_DAILY","PERIOD"]
[359033311,1745663442156,-710.77,0.00019793,2]
[359033312,1745663442166,-500.0,0.00019793,2]
[359033313,1745663442175,-500.0,0.00019793,2]
[359033314,1745663442184,-500.0,0.00019793,2]
[359033315,1745663442194,-731.59,0.00019793,2]
[359033316,1745663442203,-500.0,0.00019793,2]
[359033317,1745663442212,-500.0,0.00019793,2]
[359033318,1745663442222,-500.0,0.00019793,2]
[359033319,1745663442231,-503.71,0.00019793,2]
[359033320,1745663442241,-500.0,0.00019793,2]
[359033321,1745663442250,-518.74,0.00019793,2]
[359033322,1745663442260,-765.15,0.00019793,2]
[359033323,1745663442270,-500.0,0.00019793,2]
[359033324,1745663442279,-726.99,0.00019793,2]
[359033325,1745663442289,-500.0,0.00019793,2]
[359033326,1745663442299,-500.0,0.00019793,2]
[359033327,1745663442308,-500.0,0.00019793,2]
[359033328,1745663442317,-703.74,0.00019793,2]
[359033329,1745663442326,-500.0,0.00019793,2]
[359033330,1745663442336,-759.69,0.00019793,2]
[359033331,1745663442348,-500.0,0.00019793,2]
[359033332,1745663442357,-500.0,0.00019793,2]
[359033333,1745663442366,-500.0,0.00019793,2]
[359033334,1745663442376,-636.77,0.00019793,2]
[359033335,1745663442386,-500.0,0.00019793,2]
[359033336,1745663442395,-500.0,0.00019793,2]
[359033337,1745663442404,-500.0,0.00019793,2]
[359033338,1745663442414,-922.94,0.00019793,2]
[359033339,1745663442424,-500.0,0.00019793,2]
[359033340,1745663442433,-500.0,0.00019793,2]
[359033341,1745663442443,-500.0,0.00019793,2]
[359033342,1745663442452,-793.68,0.00019793,2]
[359033343,1745663442462,-500.0,0.00019793,2]
[359033344,1745663442472,-546.94,0.00019793,2]
[359033345,1745663442482,-500.0,0.00019793,2]
[359033346,1745663442492,-500.0,0.00019793,2]
[359033347,1745663442502,-500.0,0.00019793,2]
[359033348,1745663442512,-500.0,0.00019793,2]
[359033349,1745663442522,-500.0,0.00019793,2]
[359033350,1745663442532,-500.0,0.00019793,2]
[359033351,1745663442544,-566.50790611,0.00019793,2]
[359033352,1745663442554,-500.0,0.00019793,2]
[359033353,1745663442563,-500.0,0.00019793,2]
[359033355,1745663442572,-500.0,0.00019793,2]
[359033356,1745663442582,-500.0,0.00019793,2]
[359033357,1745663442591,-500.0,0.00019793,2]
[359033358,1745663442601,-500.0,0.00019793,2]
[359033359,1745663442611,-500.0,0.00019793,2]
[359033360,1745663442620,-500.0,0.00019793,2]
[359033361,1745663442630,-500.0,0.00019793,2]
[359033362,1745663442641,-500.0,0.00019793,2]
[359033363,1745663442651,-500.0,0.00019793,2]
[359033364,1745663442661,-500.0,0.00019793,2]
[359033365,1745663442670,-500.0,0.00019793,2]
[359033366,1745663442680,-500.0,0.00019793,2]
[359033367,1745663442690,-500.0,0.00019793,2]
[359033368,1745663442699,-785.71,0.00019793,2]
[359033369,1745663442709,-889.43,0.00019793,2]
[359033370,1745663442720,-689.69,0.00019793,2]
[359033371,1745663442731,-500.0,0.00019793,2]
[359033372,1745663442740,-562.71,0.00019793,2]
[359033373,1745663442750,-500.0,0.00019793,2]
[359033375,1745663442760,-500.0,0.00019793,2]
[359033377,1745663442769,-500.0,0.00019793,2]
[359033379,1745663442779,-500.0,0.00019793,2]
[359033380,1745663442789,-1054.06,0.00019793,2]
[359033381,1745663442798,-150.0,0.00019793,2]
[359033382,1745663442808,-500.0,0.00019793,2]
[359033383,1745663442817,-166.91613767,0.00019793,2]
[359033384,1745663442827,-500.0,0.00019793,2]
[359033385,1745663442836,-150.0,0.00019793,2]
[359033386,1745663442846,-226.29504308,0.00019793,2]
[359033387,1745663442856,-150.0,0.00019793,2]
[359033388,1745663442865,-500.0,0.00019793,2]
[359033389,1745663442874,-500.0,0.00019793,2]
[359033390,1745663442884,-500.0,0.00019793,2]
[359033391,1745663442894,-152.77490311,0.00019793,2]
[359033392,1745663442903,-352.09425077,0.00019793,2]
[359033393,1745663442913,-524.13,0.00019793,2]
[359033394,1745663442923,-500.0,0.00019793,2]
[359033395,1745663442933,-500.0,0.00019793,2]
[359033396,1745663442943,-500.0,0.00019793,2]
[359033397,1745663442952,-500.0,0.00019793,2]
[359033398,1745663442962,-500.0,0.00019793,2]
[359033399,1745663442971,-500.0,0.00019793,2]
[359033400,1745663442981,-911.39,0.00019793,2]
[359033401,1745663442991,-500.0,0.00019793,2]
[359033402,1745663443001,-500.0,0.00019793,2]
[359033403,1745663443011,-4821.93,0.00019793,2]
[359033404,1745663443020,-500.0,0.00019793,2]
[359033405,1745663443030,-500.0,0.00019793,2]
[359033406,1745663443040,-528.8,0.00019793,2]
[359033407,1745663443050,-500.0,0.00019793,2]
[359033408,1745663443060,-511.36,0.00019793,2]
[359033409,1745663443070,-500.0,0.00019793,2]
[359033410,1745663443079,-513.06,0.00019793,2]
[359033411,1745663443089,-500.0,0.00019793,2]
[359033412,1745663443098,-500.0,0.00019793,2]
[359033413,1745663443108,-500.0,0.00019793,2]
[359033414,1745663443118,-500.0,0.00019793,2]
[359033415,1745663443128,-800.43,0.00019793,2]
[359033416,1745663443137,-525.03,0.00019793,2]
[359033417,1745663443147,-620.79,0.00019793,2]
[359033418,1745663443156,-750.23,0.00019793,2]
[359033419,1745663443166,-123644.6,0.00019793,2]
[359033420,1745663443177,-500.0,0.00019793,2]
[359033421,1745663443188,-150.0,0.00019793,2]
[359033422,1745663443199,-500.0,0.00019793,2]
[359033423,1745663443209,-828.2,0.00019793,2]
[359033424,1745663443218,-150.0,0.00019793,2]
[359033425,1745663443228,-655.41,0.00019793,2]
[359033426,1745663443238,-150.0,0.00019793,2]
[359033428,1745663443249,-150.0,0.00019793,2]
[359033429,1745663443259,-150.0,0.00019793,2]
[359033431,1745663443269,-500.0,0.00019793,2]
[359033432,1745663443280,-500.0,0.00019793,2]
[359033433,1745663443289,-500.0,0.00019793,2]
[359033434,1745663443299,-500.0,0.00019793,2]
[359033435,1745663443309,-500.0,0.00019793,2]
[359033436,1745663443318,-500.0,0.00019793,2]
[359033437,1745663443328,-500.0,0.00019793,2]
[359033438,1745663443339,-12163.69,0.00019793,2]
[359033439,1745663443353,-500.0,0.00019793,2]
[359033440,1745663443362,-500.0,0.00019793,2]
[359033441,1745663443372,-500.0,0.00019793,2]
[359033442,1745663443383,-500.0,0.00019793,2]
[359033443,1745663443395,-6278.17,0.00019793,2]
[359033444,1745663443405,-500.0,0.00019793,2]
[359033445,1745663443415,-500.0,0.00019793,2]
[359033446,1745663443426,-7506.84,0.00019793,2]
[359033447,1745663443436,-500.0,0.00019793,2]
[359033448,1745663443445,-636.59596889,0.00019793,2]
[359033449,1745663443454,-518.74,0.00019793,2]
[359033450,1745663443465,-2751.69,0.00019793,2]
[359033451,1745663443475,-1051.37,0.00019793,2]
[359033452,1745663443484,-500.0,0.00019793,2]
[359033453,1745663443494,-925.06,0.00019793,2]
[359033454,1745663443504,-500.0,0.00019793,2]
[359033455,1745663443513,-500.0,0.00019793,2]
[359033456,1745663443523,-500.0,0.00019793,2]
[359033457,1745663443532,-500.0,0.00019793,2]
[359033458,1745663443542,-500.0,0.00019793,2]
[359033459,1745663443552,-832.05,0.00019793,2]
[359033460,1745663443561,-500.0,0.00019793,2]
[359033461,1745663443570,-601.84,0.00019793,2]
[359033462,1745663443580,-653.76,0.00019793,2]
[359033463,1745663443590,-500.0,0.00019793,2]
[359033464,1745663443600,-500.0,0.00019793,2]
[359033465,1745663443609,-936.84,0.00019793,2]
[359033466,1745663443618,-500.0,0.00019793,2]
[359033467,1745663443628,-500.0,0.00019793,2]
[359033468,1745663443637,-4364.15,0.00019793,2]
[359033469,1745663443647,-500.0,0.00019793,2]
[359033470,1745663443656,-500.0,0.00019793,2]
[359033471,1745663443666,-500.0,0.00019793,2]
[359033472,1745663443676,-500.0,0.00019793,2]
[359033473,1745663443685,-500.0,0.00019793,2]
[359033474,1745663443695,-2834.0,0.00019793,2]
[359033475,1745663443704,-525.76,0.00019793,2]
[359033476,1745663443714,-838.57,0.00019793,2]
[359033477,1745663443723,-500.0,0.00019793,2]
[359033478,1745663443733,-500.0,0.00019793,2]
[359033479,1745663443742,-500.0,0.00019793,2]
[359033480,1745663443752,-737.13,0.00019793,2]
[359033482,1745663443761,-699.68,0.00019793,2]
[359033483,1745663443771,-500.0,0.00019793,2]
[359033484,1745663443781,-694.7,0.00019793,2]
[359033485,1745663443791,-500.0,0.00019793,2]
[359033486,1745663443800,-630.7875257,0.00019793,2]
[359033487,1745663443810,-500.0,0.00019793,2]
[359033488,1745663443820,-500.0,0.00019793,2]
[359033489,1745663443831,-736.5,0.00019793,2]
[359033490,1745663443840,-500.0,0.00019793,2]
[359033491,1745663443850,-708.87,0.00019793,2]
[359033492,1745663443860,-500.0,0.00019793,2]
[359033493,1745663443870,-500.0,0.00019793,2]
[359033494,1745663443879,-1110.86,0.00019793,2]
[359033495,1745663443889,-500.0,0.00019793,2]
[359033496,1745663443900,-500.0,0.00019793,2]
[359033497,1745663443911,-500.0,0.00019793,2]
[359033498,1745663443921,-689.09,0.00019793,2]
[359033499,1745663443933,-548.22,0.00019793,2]
[359033500,1745663443943,-500.0,0.00019793,2]
[359033501,1745663443954,-500.0,0.00019793,2]
[359033502,1745663443965,-500.0,0.00019793,2]
[359033503,1745663443975,-275.1401511,0.00019793,2]
[359033504,1745663443984,-500.0,0.00019793,2]
[359033505,1745663443995,-884.53,0.00019793,2]
[359033506,1745663444005,-500.0,0.00019793,2]
[359033507,1745663444014,-500.0,0.00019793,2]
[359033508,1745663444025,-500.0,0.00019793,2]
[359033509,1745663444034,-500.0,0.00019793,2]
[359033510,1745663444044,-568.65,0.00019793,2]
[359033511,1745663444053,-500.0,0.00019793,2]
[359033512,1745663444063,-614.8,0.00019793,2]
[359033513,1745663444073,-500.0,0.00019793,2]
[359033514,1745663444083,-500.0,0.00019793,2]
[359033515,1745663444093,-349.68436955,0.00019793,2]
[359033516,1745663444103,-500.0,0.00019793,2]
[359033517,1745663444115,-500.0,0.00019793,2]
[359033518,1745663444126,-500.0,0.00019793,2]
[359033519,1745663444137,-500.0,0.00019793,2]
[359033520,1745663444148,-500.0,0.00019793,2]
[359033521,1745663444159,-745.67,0.00019793,2]
[359033522,1745663444170,-500.0,0.00019793,2]
[359033523,1745663444179,-500.0,0.00019793,2]
[359033524,1745663444189,-500.0,0.00019793,2]
[359033525,1745663444198,-2046.0,0.00019793,2]
[359033526,1745663444208,-500.0,0.00019793,2]
[359033527,1745663444218,-891.59,0.00019793,2]
[359033528,1745663444228,-590.74,0.00019793,2]
[359033529,1745663444238,-500.0,0.00019793,2]
[359033530,1745663444248,-635.84,0.00019793,2]
[359033531,1745663444259,-500.0,0.00019793,2]
[359033532,1745663444268,-500.0,0.00019793,2]
[359033533,1745663444278,-500.0,0.00019793,2]
[359033534,1745663444287,-970.33,0.00019793,2]
[359033535,1745663444297,-500.0,0.00019793,2]
[359033536,1745663444307,-500.0,0.00019793,2]
[359033537,1745663444317,-500.0,0.00019793,2]
[359033538,1745663444328,-500.0,0.00019793,2]
[359033539,1745663444338,-563.08,0.00019793,2]
[359033540,1745663444352,-500.0,0.00019793,2]
[359033541,1745663444362,-942.2,0.00019794,2]
[359033542,1745663444372,-500.0,0.00019794,2]
[359033543,1745663444381,-500.0,0.00019794,2]
[359033544,1745663444393,-500.0,0.00019794,2]
[359033545,1745663444403,-500.0,0.00019794,2]
[359033546,1745663444413,-300.0,0.00019794,2]
[359033547,1745663444660,-500.0,0.00019794,2]
[359033548,1745663444711,-500.0,0.00019794,2]
[359033549,1745663444722,-500.0,0.00019794,2]
[359033550,1745663444732,-699.77,0.00019794,2]
[359033551,1745663444742,-500.0,0.00019794,2]
[359033552,1745663444753,-500.0,0.00019794,2]
[359033553,1745663444763,-500.0,0.00019794,2]
[359033554,1745663444773,-500.0,0.00019794,2]
[359033555,1745663444782,-500.0,0.00019794,2]
[359033556,1745663444792,-500.0,0.00019794,2]
[359033557,1745663444801,-233.15286532,0.00019794,2]
[359033558,1745663444811,-500.0,0.00019794,2]
[359033559,1745663444822,-502.76,0.00019794,2]
[359033560,1745663444832,-500.0,0.00019794,2]
[359033561,1745663444842,-500.0,0.00019794,2]
[359033562,1745663444853,-840.65,0.00019794,2]
[359033563,1745663444862,-570.15,0.00019794,2]
[359033564,1745663444873,-500.0,0.00019794,2]
[359033565,1745663444882,-500.0,0.00019794,2]
[359033566,1745663444892,-500.0,0.00019794,2]
[359033567,1745663444902,-500.0,0.00019794,2]
[359033568,1745663444912,-500.0,0.00019794,2]
[359033569,1745663444921,-1126.48,0.00019794,2]
[359033570,1745663444931,-500.0,0.00019794,2]
[359033571,1745663444940,-500.0,0.00019794,2]
[359033572,1745663444950,-500.0,0.00019794,2]
[359033573,1745663444960,-500.0,0.00019794,2]
[359033574,1745663444969,-500.0,0.00019794,2]
[359033575,1745663444980,-500.0,0.00019794,2]
[359033576,1745663444989,-500.0,0.00019794,2]
[359033577,1745663444999,-500.0,0.00019794,2]
[359033578,1745663445009,-500.0,0.00019794,2]
[359033579,1745663445019,-500.0,0.00019794,2]
[359033580,1745663445028,-500.0,0.00019794,2]
[359033581,1745663445038,-500.0,0.00019794,2]
[359033582,1745663445048,-703.09,0.00019794,2]
[359033583,1745663445058,-500.0,0.00019794,2]
[359033584,1745663445068,-500.0,0.00019794,2]
[359033585,1745663445078,-993.42,0.00019794,2]
[359033586,1745663445087,-500.0,0.00019794,2]
[359033587,1745663445097,-500.0,0.00019794,2]
[359033588,1745663445108,-500.0,0.00019794,2]
[359033589,1745663445117,-653.12,0.00019794,2]
[359033590,1745663445127,-653.12,0.00019794,2]
[359033591,1745663445136,-500.0,0.00019794,2]
[359033592,1745663445146,-500.0,0.00019794,2]
[359033593,1745663445156,-500.0,0.00019794,2]
[359033594,1745663445165,-500.0,0.00019794,2]
[359033595,1745663445175,-500.0,0.00019794,2]
[359033596,1745663445184,-500.0,0.00019794,2]
[359033597,1745663445194,-500.0,0.00019794,2]
[359033598,1745663445204,-556.12821049,0.00019794,2]
[359033599,1745663445214,-591.05,0.00019794,2]
[359033600,1745663445224,-500.0,0.00019794,2]
[359033601,1745663445234,-500.0,0.00019794,2]
[359033602,1745663445243,-500.0,0.00019794,2]
[359033603,1745663445253,-500.0,0.00019794,2]
[359033604,1745663445262,-500.0,0.00019794,2]
[359033605,1745663445272,-500.0,0.00019794,2]
[359033606,1745663445282,-500.0,0.00019794,2]
[359033607,1745663445291,-500.0,0.00019794,2]
[359033608,1745663445301,-500.0,0.00019794,2]
[359033609,1745663445311,-819.68,0.00019794,2]
[359033610,1745663445320,-500.0,0.00019794,2]
[359033611,1745663445330,-500.0,0.00019794,2]
[359033612,1745663445340,-500.0,0.00019794,2]
[359033613,1745663445352,-500.0,0.00019794,2]
[359033614,1745663445362,-158.19370114,0.00019794,2]
[359033615,1745663445372,-676.06,0.00019794,2]
[359033616,1745663445382,-500.0,0.00019794,2]
[359033617,1745663445392,-506.44,0.00019794,2]
[359033618,1745663445403,-726.73,0.00019794,2]
[359033619,1745663445412,-740.67,0.00019794,2]
[359033620,1745663445423,-500.0,0.00019794,2]
[359033621,1745663445433,-500.0,0.00019794,2]
[359033622,1745663445442,-1378.22,0.00019794,2]
[359033623,1745663445452,-500.0,0.00019794,2]
[359033624,1745663445461,-1324.46,0.00019794,2]
[359033625,1745663445471,-500.0,0.00019794,2]
[359033626,1745663445480,-939.22,0.00019794,2]
[359033627,1745663445490,-500.0,0.00019794,2]
[359033628,1745663445499,-1472.56,0.00019794,2]
[359033629,1745663445509,-546.37,0.00019794,2]
[359033630,1745663445519,-500.0,0.00019794,2]
[359033631,1745663445528,-1030.95,0.00019794,2]
[359033632,1745663445538,-505.05,0.00019794,2]
[359033633,1745663445547,-1111.4,0.00019794,2]
[359033634,1745663445557,-656.42,0.00019794,2]
[359033635,1745663445566,-854.37,0.00019794,2]
[359033636,1745663445576,-436.4854433,0.00019799,2]
[359033637,1745663445587,-700034.34649796,0.000198,2]
[359033638,1745663445597,-1555.6581725,0.00019808,2]
[359033639,1745663445607,-150.0,0.0001982,2]
[359033640,1745663445618,-150.0,0.0001982,2]
[359033641,1745663445628,-150.0,0.0001982,2]
[359033642,1745663445638,-150.0,0.0001982,2]
[359033643,1745663445648,-150.0,0.0001982,2]
[359033644,1745663445658,-150.0,0.0001982,2]
[359033645,1745663445668,-257.8330175,0.0001982,2]
[359033646,1745663445678,-500.0,0.0001982,2]
[359033647,1745663445688,-500.0,0.0001982,2]
[359033648,1745663445697,-500.0,0.0001982,2]
[359033649,1745663445708,-2834.0,0.0001982,2]
[359033650,1745663445720,-500.0,0.0001982,2]
[359033651,1745663445730,-500.0,0.0001982,2]
[359033652,1745663445740,-250.0,0.0001983,2]
[359033653,1745663445751,-2908.92614781,0.0001983,2]
[359033654,1745663445761,-783.79568405,0.00019831,2]
[359033655,1745663445771,-1555.6581725,0.00019831,2]
[359033656,1745663445781,-17272.27,0.0001984,2]
[359033657,1745663445791,-2044.59,0.0001984,2]
[359033658,1745663445801,-2000.0,0.0001984,2]
[359033659,1745663445811,-207.12841915,0.00019848,2]
[359033660,1745663445822,-150.0,0.00019848,2]
[359033661,1745663445832,-150.0,0.00019848,2]
[359033662,1745663445841,-250.0,0.00019848,2]
[359033663,1745663445850,-150.0,0.00019848,2]
[359033664,1745663445860,-250.0,0.00019848,2]
[359033665,1745663445870,-500.0,0.00019848,2]
[359033666,1745663445880,-500.0,0.00019848,2]
[359033667,1745663445890,-500.0,0.00019848,2]
[359033668,1745663445900,-2834.0,0.00019848,2]
[359033669,1745663445910,-500.0,0.00019848,2]
[359033670,1745663445920,-500.0,0.00019848,2]
[359033671,1745663445929,-653.12,0.00019854,2]
[359033672,1745663445939,-783.79568405,0.00019854,2]
[359033673,1745663445948,-1555.6581725,0.00019854,2]
[359033674,1745663445958,-730.28498937,0.0001987,2]
[359033675,1745663445967,-150.0,0.00019875,2]
[359033676,1745663445977,-150.0,0.00019875,2]
[359033677,1745663445986,-252.10401299,0.00019875,2]
[359033678,1745663445997,-500.0,0.00019875,2]
[359033679,1745663446008,-500.0,0.00019875,2]
[359033680,1745663446018,-500.0,0.00019875,2]
[359033681,1745663446027,-2834.0,0.00019875,2]
[359033682,1745663446036,-500.0,0.00019875,2]
[359033683,1745663446047,-500.0,0.00019875,2]
[359033684,1745663446057,-783.79568405,0.00019877,2]
[359033685,1745663446067,-1555.6581725,0.00019877,2]
[359033686,1745663446077,-3248.06686756,0.00019889,2]
[359033687,1745663446088,-151.0,0.00019896,2]
[359033688,1745663446099,-151.0,0.00019896,2]
[359033689,1745663446111,-151.0,0.00019896,2]
[359033690,1745663446120,-151.0,0.00019896,2]
[359033691,1745663446130,-151.0,0.00019896,2]
[359033692,1745663446140,-151.0,0.00019896,2]
[359033693,1745663446149,-151.0,0.00019896,2]
[359033694,1745663446159,-151.0,0.00019897,2]
[359033695,1745663446168,-324.66257676,0.000199,2]
[359033696,1745663446178,-2000.0,0.000199,2]
[359033697,1745663446188,-783.79568405,0.000199,2]
[359033698,1745663446198,-33921.79591304,0.000199,2]
[359033699,1745663446208,-4098.97926314,0.000199,2]
[359033700,1745663446218,-258.52787675,0.000199,2]
[359033701,1745663446228,-202.83355767,0.000199,2]
[359033702,1745663446239,-1555.6581725,0.000199,2]
[359033703,1745663446250,-216.0,0.00019903,2]
[359033704,1745663446260,-250.0,0.00019903,2]
[359033705,1745663446271,-500.0,0.00019903,2]
[359033706,1745663446284,-500.0,0.00019903,2]
[359033707,1745663446294,-500.0,0.00019903,2]
[359033708,1745663446305,-2834.0,0.00019903,2]
[359033709,1745663446315,-500.0,0.00019903,2]
[359033710,1745663446325,-500.0,0.00019903,2]
[359033711,1745663446342,-500.0,0.0001993,2]
[359033712,1745663446353,-500.0,0.0001993,2]
[359033713,1745663446363,-500.0,0.0001993,2]
[359033714,1745663446373,-2834.0,0.0001993,2]
[359033715,1745663446384,-500.0,0.0001993,2]
[359033716,1745663446394,-500.0,0.0001993,2]
[359033717,1745663446406,-408.92069253,0.00019957,2]
[359033718,1745663446418,-500.0,0.00019957,2]
[359033719,1745663446431,-500.0,0.00019957,2]
[359033720,1745663446441,-2834.0,0.00019957,2]
[359033721,1745663446453,-500.0,0.00019957,2]
[359033722,1745663446466,-500.0,0.00019957,2]
[359033723,1745663446477,-2005.064,0.00019965,2]
[359033724,1745663446487,-173.14312754,0.00019967,2]
[359033725,1745663446498,-500.0,0.00019973,2]
[359033726,1745663446508,-500.0,0.00019973,2]
[359033727,1745663446518,-500.0,0.00019973,2]
[359033728,1745663446528,-500.0,0.00019973,2]
[359033729,1745663446539,-500.0,0.00019973,2]
[359033730,1745663446550,-500.0,0.00019973,2]
[359033731,1745663446560,-500.0,0.00019973,2]
[359033732,1745663446570,-160.11472219,0.00019973,2]
[359033733,1745663446580,-500.0,0.00019973,2]
[359033734,1745663446589,-514.7327358,0.00019973,2]
[359033735,1745663446599,-500.0,0.00019973,2]
[359033736,1745663446610,-500.0,0.00019973,2]
[359033737,1745663446619,-505.51795203,0.00019973,2]
[359033738,1745663446629,-174.53826606,0.00019973,2]
[359033739,1745663446639,-500.0,0.00019973,2]
[359033740,1745663446649,-1336.0,0.00019982,2]
[359033741,1745663446659,-796.0,0.00019982,2]
[359033742,1745663446668,-1287.0,0.00019982,2]
[359033743,1745663446678,-548.0,0.00019982,2]
[359033744,1745663446687,-2060.0,0.00019982,2]
[359033745,1745663446697,-1446.0,0.00019982,2]
[359033746,1745663446707,-579.0,0.00019982,2]
[359033747,1745663446716,-911.0,0.00019982,2]
[359033748,1745663446726,-877.0,0.00019982,2]
[359033749,1745663446737,-1135.0,0.00019982,2]
[359033750,1745663446747,-920.0,0.00019982,2]
[359033751,1745663446758,-3991.0,0.00019982,2]
[359033752,1745663446774,-500.0,0.00019985,2]
[359033753,1745663446784,-500.0,0.00019985,2]
[359033754,1745663446794,-2834.0,0.00019985,2]
[359033755,1745663446803,-500.0,0.00019985,2]
[359033756,1745663446814,-500.0,0.00019985,2]
[359033757,1745663446824,-653.12,0.00019985,2]
[359033758,1745663446834,-601.84,0.00019985,2]
[359033759,1745663446844,-6206.4552307,0.00019986,2]
[359033760,1745663446854,-29718.2046605,0.00019986,2]
[359033761,1745663446864,-2838.6219103,0.00019986,2]
[359033762,1745663446874,-14108.8036734,0.00019986,2]
[359033763,1745663446884,-318.9902856,0.00019986,2]
[359033764,1745663446895,-33825.5678489,0.00019986,2]
[359033765,1745663446905,-300.0,0.00019999,2]
[359033766,1745663446915,-500.0,0.00019999,2]
[359033767,1745663446925,-666.0,0.00019999,2]
[359033768,1745663446935,-500.0,0.00019999,2]
[359033769,1745663446945,-500.0,0.00019999,2]
[359033770,1745663446954,-629.738129,0.00019999,2]
[359033771,1745663446965,-300.0,0.00019999,2]
[359033772,1745663446978,-383.00964834,0.00019999,2]
[359033773,1745663446990,-500.0,0.00019999,2]
[359033774,1745663447001,-152.27423064,0.00019999,2]
[359033775,1745663447012,-500.0,0.00019999,2]
[359033776,1745663447023,-500.0,0.00019999,2]
[359033777,1745663447034,-500.0,0.00019999,2]
[359033778,1745663447047,-500.0,0.00019999,2]
[359033779,1745663447057,-151.0,0.00019999,2]
[359033780,1745663447067,-342.89229373,0.00019999,2]
[359033781,1745663447077,-653.12,0.00019999,2]
[359033782,1745663447087,-653.12,0.00019999,2]
[359033783,1745663447097,-653.12,0.00019999,2]
[359033784,1745663447265,-653.12,0.00019999,2]
[359033785,1745663447277,-653.12,0.00019999,2]
[359033786,1745663447287,-653.12,0.00019999,2]
[359033787,1745663447299,-653.12,0.00019999,2]
[359033788,1745663447310,-653.12,0.00019999,2]
[359033789,1745663447320,-653.12,0.00019999,2]
[359033790,1745663447329,-653.12,0.00019999,2]
[359033791,1745663447340,-653.12,0.00019999,2]
[359033792,1745663447356,-653.12,0.00019999,2]
[359033793,1745663447367,-653.12,0.00019999,2]
[359033794,1745663447379,-653.12,0.00019999,2]
[359033795,1745663447391,-653.12,0.00019999,2]
[359033796,1745663447403,-653.12,0.00019999,2]
[359033797,1745663447415,-653.12,0.00019999,2]
[359033798,1745663447427,-653.12,0.00019999,2]
[359033799,1745663447438,-653.12,0.00019999,2]
[359033800,1745663447450,-653.26921698,0.00019999,2]
[359033801,1745663447461,-601.84,0.00019999,2]
[359033802,1745663447470,-601.84,0.00019999,2]
[359033803,1745663447479,-601.84,0.00019999,2]
[359033804,1745663447489,-601.84,0.00019999,2]
[359033805,1745663447500,-601.84,0.00019999,2]
[359033806,1745663447511,-601.84,0.00019999,2]
[359033807,1745663447522,-601.84,0.00019999,2]
[359033808,1745663447532,-601.84,0.00019999,2]
[359033809,1745663447542,-601.84,0.00019999,2]
[359033810,1745663447551,-601.84,0.00019999,2]
[359033811,1745663447562,-601.84,0.00019999,2]
[359033812,1745663447572,-601.84,0.00019999,2]
[359033813,1745663447581,-601.84,0.00019999,2]
[359033814,1745663447591,-601.84,0.00019999,2]
[359033815,1745663447600,-601.84,0.00019999,2]
[359033816,1745663447615,-601.84,0.00019999,2]
[359033817,1745663447625,-601.84,0.00019999,2]